{"text_format":"1","workbook":"xlsx","n_sheets":5,"sheets":["Home","MyHistory","Summary","WhatIf","Instructions"],"not_rendered":{"charts":0,"images":2,"macros":1,"external_links":0,"defined_names":3,"comments":0,"pivot_tables":1},"unopened":[],"bounds":{"document_bytes":16777216,"sheet_cells":100000,"rows_first":2000,"rows_last":500,"rows_between":2000,"halvings":0,"cell_chars":16384,"cell_head_chars":4096},"cells_cut":0,"cells_raw":0,"read":"whole","date_system":"1900"}

{"sheet":"Home","index":0,"n_rows":52,"n_cols":20,"rows_kept":52,"cut":false,"hidden":false,"merged":[]}
["Date","Income or Expense","Amount","Account","Category","Note",null,null,null,null,"Categories","Income or Expense",null,"Accounts","Starting Balance","Current Balance","Main Balance",null,"Old Starting Balance","Old Current Balance"]
["2015-12-26","Expense",10,"Mastercard","Groceries","Groceries - Food",null,null,null,null,"Groceries","Income",null,"Cash",100,null,{"$f":"IF(P2=\"\",O2,P2)","v":100},null,100]
[null,null,null,null,null,null,null,null,null,null,null,"Expense",null,"Checking",1000,null,{"$f":"IF(P3=\"\",O3,P3)","v":1000},null,1000]
[null,null,null,null,null,null,null,null,null,null,null,null,null,"Mastercard",-100,null,-100,null,-100]
[null,null,null,null,null,null,null,null,null,null,null,null,null,null,null,null,0]
[null,null,null,null,null,null,null,null,null,null,null,null,null,null,null,null,0]
[null,null,null,null,null,null,null,null,null,null,null,null,null,null,null,null,0]
[null,null,null,null,null,null,null,null,null,null,null,null,null,null,null,null,0]
[null,null,null,null,null,null,null,null,null,null,null,null,null,null,null,null,0]
[null,null,null,null,null,null,null,null,null,null,null,null,null,null,null,null,0]
[null,"Click the Images Below to Help Support the Podcast:",null,null,null,null,null,null,null,null,null,null,null,null,null,null,0]
[null,null,null,null,null,null,null,null,null,null,null,null,null,null,null,null,0]
[null,"Share:",null,null,null,null,null,null,null,null,null,null,null,null,null,null,0]
[null,null,null,null,null,null,null,null,null,null,null,null,null,null,null,null,0]
[null,null,null,null,null,null,null,null,null,null,null,null,null,null,null,null,0]
[null,null,null,null,null,null,null,null,null,null,null,null,null,null,null,null,0]
[null,null,null,null,null,null,null,null,null,null,null,null,null,null,null,null,0]
[null,"Review the Podcast on iTunes:",null,null,null,null,null,null,null,null,null,null,null,null,null,null,0]
[null,null,null,null,null,null,null,null,null,null,null,null,null,null,null,null,0]
[null,null,null,null,null,null,null,null,null,null,null,null,null,null,null,null,0]
[null,null,null,null,null,null,null,null,null,null,null,null,null,null,null,null,0]
[null,null,null,null,null,null,null,null,null,null,null,null,null,null,null,null,0]
[null,null,null,null,null,null,null,null,null,null,null,null,null,null,null,null,0]
[null,null,null,null,null,null,null,null,null,null,null,null,null,null,null,null,0]
[null,null,null,null,null,null,null,null,null,null,null,null,null,null,null,null,0]
[null,"Created by: Justin Malik of the \"Optimal Living Daily\" podcast",null,null,null,null,null,null,null,null,null,null,null,null,null,null,0]
[null,"http://oldpodcast.com",null,null,null,null,null,null,null,null,null,null,null,null,null,null,0]
[null,"Twitter: @OLDPodcast",null,null,null,null,null,null,null,null,null,null,null,null,null,null,0]
[null,"iTunes: Optimal Living Daily Podcast",null,null,null,null,null,null,null,null,null,null,null,null,null,null,0]
[null,null,null,null,null,null,null,null,null,null,null,null,null,null,null,null,0]
[null,null,null,null,null,null,null,null,null,null,null,null,null,null,null,null,0]
[null,null,null,null,null,null,null,null,null,null,null,null,null,null,null,null,0]
[null,null,null,null,null,null,null,null,null,null,null,null,null,null,null,null,0]
[null,null,null,null,null,null,null,null,null,null,null,null,null,null,null,null,0]
[null,null,null,null,null,null,null,null,null,null,null,null,null,null,null,null,0]
[null,null,null,null,null,null,null,null,null,null,null,null,null,null,null,null,0]
[null,null,null,null,null,null,null,null,null,null,null,null,null,null,null,null,0]
[null,null,null,null,null,null,null,null,null,null,null,null,null,null,null,null,0]
[null,null,null,null,null,null,null,null,null,null,null,null,null,null,null,null,0]
[null,null,null,null,null,null,null,null,null,null,null,null,null,null,null,null,0]
[null,null,null,null,null,null,null,null,null,null,null,null,null,null,null,null,0]
[null,null,null,null,null,null,null,null,null,null,null,null,null,null,null,null,0]
[null,null,null,null,null,null,null,null,null,null,null,null,null,null,null,null,0]
[null,null,null,null,null,null,null,null,null,null,null,null,null,null,null,null,0]
[null,null,null,null,null,null,null,null,null,null,null,null,null,null,null,null,0]
[null,null,null,null,null,null,null,null,null,null,null,null,null,null,null,null,0]
[null,null,null,null,null,null,null,null,null,null,null,null,null,null,null,null,0]
[null,null,null,null,null,null,null,null,null,null,null,null,null,null,null,null,0]
[null,null,null,null,null,null,null,null,null,null,null,null,null,null,null,null,0]
[null,null,null,null,null,null,null,null,null,null,null,null,null,null,null,null,0]
[null,null,null,null,null,null,null,null,null,null,null,null,null,null,null,null,0]
[null,null,null,null,null,null,null,null,null,null,null,null,null,"If you need more accounts than this, talk to Justin"]

{"sheet":"MyHistory","index":1,"n_rows":2,"n_cols":7,"rows_kept":2,"cut":false,"hidden":false,"merged":[]}
["Date","Income or Expense","Old Amount","Account","Category","Note","Amount"]
["2015-12-31","SAMPLE",0,"SAMPLE","SAMPLE","SAMPLE",{"$f":"IF(MyHistoryTable[Income or Expense]=\"Income\",MyHistoryTable[Old Amount],-MyHistoryTable[Old Amount])","v":0}]

{"sheet":"Summary","index":2,"n_rows":4,"n_cols":4,"rows_kept":4,"cut":false,"hidden":false,"merged":[]}
["My Liquid Assets",null,"Row Labels","Sum of Amount"]
[{"$f":"SUM(Home!$Q$2:$Q$51)","v":1000},null,"2015-12-31",0]
[null,null,"SAMPLE",0]
[null,null,"Grand Total",0]

{"sheet":"WhatIf","index":3,"n_rows":31,"n_cols":10,"rows_kept":31,"cut":false,"hidden":false,"merged":[]}
["What If…"]
["I saved",1,"every week,",null,"Week","Day","Hour",null,null,"Click the Images Below to Help Support the Podcast:"]
["& added",1,"more each week?",null,{"$f":"B2","v":1},{"$f":"E3/7","v":0.14285714285714285},{"$f":"F3/8","v":1.7857142857142856E-2}]
[null,null,null,null,null,null,null,null,null,"Share:"]
[null,"Deposit Amount","Running Total",null,null,"Deposit Amount","Running Total"]
["Week 1",{"$f":"B2","v":1},{"$f":"B6","v":1},null,"Week 27",{"$f":"B31+$B$3","v":27},{"$f":"C31+F6","v":378}]
["Week 2",{"$f":"B6+$B$3","v":2},{"$f":"C6+B7","v":3},null,"Week 28",{"$f":"F6+$B$3","v":28},{"$f":"G6+F7","v":406}]
["Week 3",{"$f":"B7+$B$3","v":3},{"$f":"C7+B8","v":6},null,"Week 29",{"$f":"F7+$B$3","v":29},{"$f":"G7+F8","v":435}]
["Week 4",{"$f":"B8+$B$3","v":4},{"$f":"C8+B9","v":10},null,"Week 30",{"$f":"F8+$B$3","v":30},{"$f":"G8+F9","v":465},null,null,"Review the Podcast on iTunes:"]
["Week 5",{"$f":"B9+$B$3","v":5},15,null,"Week 31",31,496]
["Week 6",6,21,null,"Week 32",32,528]
["Week 7",7,28,null,"Week 33",33,561]
["Week 8",8,36,null,"Week 34",34,595]
["Week 9",9,45,null,"Week 35",35,630]
["Week 10",10,55,null,"Week 36",36,666]
["Week 11",11,66,null,"Week 37",37,703]
["Week 12",12,78,null,"Week 38",38,741,null,null,"Created by: Justin Malik of the \"Optimal Living Daily\" podcast"]
["Week 13",13,91,null,"Week 39",39,780,null,null,"http://oldpodcast.com"]
["Week 14",14,105,null,"Week 40",40,820,null,null,"Twitter: @OLDPodcast"]
["Week 15",15,120,null,"Week 41",41,861,null,null,"iTunes: Optimal Living Daily Podcast"]
["Week 16",16,136,null,"Week 42",42,903]
["Week 17",17,153,null,"Week 43",43,946]
["Week 18",18,171,null,"Week 44",44,990]
["Week 19",19,190,null,"Week 45",45,1035]
["Week 20",20,210,null,"Week 46",46,1081]
["Week 21",21,231,null,"Week 47",47,1128]
["Week 22",22,253,null,"Week 48",48,1176]
["Week 23",23,276,null,"Week 49",49,1225]
["Week 24",24,300,null,"Week 50",50,1275]
["Week 25",25,325,null,"Week 51",51,1326]
["Week 26",26,351,null,"Week 52",52,1378]

{"sheet":"Instructions","index":4,"n_rows":46,"n_cols":12,"rows_kept":46,"cut":false,"hidden":false,"merged":[]}
[]
[null,"Watch the video tutorial here: "]
[null,"https://pixtantllc.wistia.com/medias/lvh3wduvlg",null,null,null,null,null,null,null,null,null,"Click the Images Below to Help Support the Podcast:"]
[]
[null,"Starting Out",null,null,null,null,null,null,null,null,null,"Share:"]
[]
[null,"On the Home tab (at the bottom):"]
[null,"1) Enter all the accounts where you have or owe money in Column N (you can even include"]
[null,"     Gift Cards, Stamps, and anything else that is cash-like)"]
[null,"2) Enter your balances for each account in the column next to it (Column O). ",null,null,null,null,null,null,null,null,null,"Review the Podcast on iTunes:"]
[null,"For credit cards or money owed, make sure it is a negative number!"]
[]
[null,"Start Tracking!"]
[]
[null,"1) Whenever you gain or spend money, enter the transaction on the Home tab. "]
[null,"    Fill in each part."]
[null,null,"a) If you're gaining money, choose \"Income\"; if you're losing money, choose \"Expense.\""]
[null,null,"b) The amount should always be positive, not negative, even if it's an expense.",null,null,null,null,null,null,null,null,"Created by: Justin Malik of the \"Optimal Living Daily\" podcast"]
[null,null,"c) Choose a category for the transaction. ",null,null,null,null,null,null,null,null,"http://oldpodcast.com"]
[null,null,"    Note that you need to add the category to your list in Column K.",null,null,null,null,null,null,null,null,"Twitter: @OLDPodcast"]
[null,null,"d) You can also add a note to get more specific.",null,null,null,null,null,null,null,null,"iTunes: Optimal Living Daily Podcast"]
[]
[null,"2) Click the big \"Enter Transaction\" button!"]
[]
[null,"View Your Spending Habits"]
[]
[null,"1) Check out the \"Summary\" tab to see a report of your income & expenses by date & by category."]
[null,"2) \"My Liquid Assets\" is a total of all your accounts"]
[]
[null,"What If…"]
[]
[null,"1) View the \"WhatIf\" sheet to experiment/see how much you'd save if you were to save $X a day! "]
[null,"    It's not as difficult to save money as you think!"]
[]
[null,"Troubleshooting"]
[]
[null,"1) Entered a transaction in correctly? "]
[null,null,"If the Date, Category, or Note is wrong, simply change it on your \"MyHistory\" tab ,"]
[null,null,null,"where all your transactions are."]
[null,null,"If you incorrectly selected Income vs. Expense, or the Amount or Account is wrong, "]
[null,null,null,"you should redo the transaction."]
[null,null,"To redo a transaction:"]
[null,null,null,"a) Find the transaction on the MyHistory tab and delete that row."]
[null,null,null,"b) On the Home tab, copy your old info (Columns S and T)"]
[null,null,null,null," and paste it over your current info (Columns O and P)."]
[null,null,null,"(Watch the video tutorial for a better description.)"]